fUSD/lending_fUSD_20241223
["ID","MTS","AMOUNT","RATE_DAILY","PERIOD"]
[346437915,1734976267453,-3002.12,0.00018361,2]
[346437916,1734976267462,-3723.42,0.00018361,2]
[346437917,1734976267472,-858.65,0.00018361,2]
[346437918,1734976267482,-1916.33,0.00018361,2]
[346437919,1734976267492,-500.0,0.00018361,2]
[346437920,1734976267502,-500.0,0.00018361,2]
[346437921,1734976267512,-500.0,0.00018361,2]
[346437922,1734976267522,-2140.99,0.00018361,2]
[346437923,1734976267532,-681.48,0.00018361,2]
[346437924,1734976267542,-1625.29,0.00018361,2]
[346437925,1734976267552,-1841.59,0.00018361,2]
[346437926,1734976267562,-2941.14,0.00018361,2]
[346437927,1734976267571,-1970.61,0.00018361,2]
[346437928,1734976267581,-1621.01,0.00018361,2]
[346437929,1734976267591,-1991.28,0.00018361,2]
[346437930,1734976267601,-840.53,0.00018361,2]
[346437931,1734976267611,-3058.88,0.00018361,2]
[346437932,1734976267620,-1658.38,0.00018361,2]
[346437933,1734976267630,-2315.11,0.00018361,2]
[346437934,1734976267640,-1894.71,0.00018361,2]
[346437935,1734976267649,-693.01,0.00018361,2]
[346437936,1734976267659,-3242.89,0.00018361,2]
[346437937,1734976267669,-1384.5,0.00018361,2]
[346437938,1734976267678,-3571.32,0.00018361,2]
[346437939,1734976267688,-1571.82,0.00018361,2]
[346437940,1734976267698,-500.0,0.00018361,2]
[346437941,1734976267708,-1252.41,0.00018361,2]
[346437942,1734976267718,-2373.28,0.00018361,2]
[346437943,1734976267727,-1686.64,0.00018361,2]
[346437944,1734976267737,-2249.62,0.00018361,2]
[346437945,1734976267747,-500.0,0.00018365,2]
[346437946,1734976268003,-500.0,0.00018365,2]
[346437947,1734976268013,-825.9,0.00018365,2]
[346437948,1734976268022,-1517.67,0.00018365,2]
[346437949,1734976268031,-564.66,0.00018365,2]
[346437950,1734976268041,-516.53,0.00018365,2]
[346437951,1734976268050,-500.0,0.00018365,2]
[346437952,1734976268059,-2668.62,0.00018365,2]
[346437953,1734976268069,-862.98,0.00018365,2]
[346437954,1734976268078,-500.0,0.00018365,2]
[346437955,1734976268087,-505.41,0.00018365,2]
[346437956,1734976268097,-539.27,0.00018365,2]
[346437957,1734976268107,-500.0,0.00018365,2]
[346437958,1734976268116,-2534.69,0.00018365,2]
[346437959,1734976268126,-500.0,0.00018365,2]
[346437960,1734976268137,-960.48,0.00018365,2]
[346437961,1734976268147,-2575.85,0.00018365,2]
[346437962,1734976268156,-749.68,0.00018365,2]
[346437963,1734976268166,-1282.79,0.00018365,2]
[346437964,1734976268178,-1346.35,0.00018365,2]
[346437965,1734976268188,-658.92,0.00018365,2]
[346437966,1734976268197,-500.0,0.00018365,2]
[346437967,1734976268208,-367.92029102,0.00018365,2]
[346437968,1734976268219,-500.0,0.00018365,2]
[346437969,1734976268228,-847.62,0.00018365,2]
[346437970,1734976268238,-500.0,0.00018365,2]
[346437971,1734976268247,-500.0,0.00018365,2]
[346437972,1734976268257,-5126.11,0.00018365,2]
[346437973,1734976268267,-500.0,0.00018365,2]
[346437974,1734976268276,-7375.2,0.00018365,2]
[346437975,1734976268285,-1468.03,0.00018365,2]
[346437976,1734976268295,-7024.69,0.00018365,2]
[346437977,1734976268305,-27031.36,0.00018365,2]
[346437978,1734976268314,-2789.74,0.00018365,2]
[346437979,1734976268323,-500.0,0.00018365,2]
[346437980,1734976268333,-884.61,0.00018365,2]
[346437981,1734976268343,-647.9,0.00018365,2]
[346437982,1734976268352,-5982.48,0.00018365,2]
[346437983,1734976268362,-500.0,0.00018365,2]
[346437984,1734976268371,-500.0,0.00018365,2]
[346437985,1734976268381,-620.34,0.00018365,2]
[346437986,1734976268390,-1001.91,0.00018365,2]
[346437987,1734976268400,-579.06,0.00018365,2]
[346437988,1734976268411,-217.66611098,0.00018365,2]
[346437989,1734976268421,-641.11,0.00018365,2]
[346437990,1734976268430,-4704.67,0.00018365,2]
[346437991,1734976268439,-3469.32,0.00018365,2]
[346437992,1734976268450,-3969.53,0.00018365,2]
[346437993,1734976268459,-1456.66,0.00018365,2]
[346437994,1734976268470,-2066.28,0.00018365,2]
[346437995,1734976268480,-4192.9,0.00018365,2]
[346437996,1734976268489,-1435.66,0.00018365,2]
[346437997,1734976268499,-4398.29,0.00018365,2]
[346437998,1734976268508,-1662.65,0.00018365,2]
[346437999,1734976268518,-8771.74,0.00018365,2]
[346438000,1734976268527,-1824.12,0.00018365,2]
[346438001,1734976268536,-6281.74,0.00018365,2]
[346438002,1734976268545,-1833.27,0.00018365,2]
[346438003,1734976268555,-5741.87,0.00018365,2]
[346438004,1734976268565,-2536.19,0.00018365,2]
[346438005,1734976268574,-896.26,0.00018365,2]
[346438006,1734976268583,-16415.71,0.00018365,2]
[346438007,1734976268593,-500.0,0.00018368,2]
[346438008,1734976268602,-5622.56,0.00018368,2]
[346438009,1734976268611,-9319.41,0.00018368,2]
[346438010,1734976268620,-6009.65,0.00018368,2]
[346438011,1734976268630,-1615.24,0.00018368,2]
[346438012,1734976268639,-5064.54,0.00018368,2]
[346438013,1734976268649,-14077.6,0.00018368,2]
[346438014,1734976268658,-12761.71,0.00018368,2]
[346438015,1734976268668,-11993.86,0.00018368,2]
[346438016,1734976268677,-3367.24,0.00018368,2]
[346438017,1734976268686,-11304.97,0.00018368,2]
[346438018,1734976268695,-3462.96,0.00018368,2]
[346438019,1734976268706,-1364.64,0.00018368,2]
[346438020,1734976268716,-3082.67,0.00018368,2]
[346438021,1734976268725,-2273.82,0.00018368,2]
[346438022,1734976268734,-12836.76,0.00018368,2]
[346438023,1734976268743,-4006.03,0.00018368,2]
[346438024,1734976268752,-4920.03,0.00018368,2]
[346438025,1734976268762,-4792.68,0.00018368,2]
[346438026,1734976268771,-3385.15,0.00018368,2]
[346438027,1734976268780,-5349.99,0.00018368,2]
[346438028,1734976268790,-1315.14,0.00018369,2]
[346438029,1734976268799,-5620.53,0.00018369,2]
[346438030,1734976268808,-10051.76,0.00018369,2]
[346438031,1734976268817,-11019.08,0.00018369,2]
[346438032,1734976268827,-53047.52,0.00018369,2]
[346438033,1734976268836,-3709.46,0.00018369,2]
[346438034,1734976268845,-7080.87,0.00018369,2]
[346438035,1734976268854,-4261.14,0.00018369,2]
[346438036,1734976268863,-2996.88,0.00018369,2]
[346438037,1734976268872,-7372.72,0.00018369,2]
[346438038,1734976268882,-38290.66,0.00018369,2]
[346438039,1734976268891,-2010.08,0.00018369,2]
[346438040,1734976268900,-5608.47,0.00018369,2]
[346438041,1734976268909,-4919.45,0.00018369,2]
[346438042,1734976268919,-3790.52,0.00018369,2]
[346438043,1734976268928,-7084.37,0.00018369,2]
[346438044,1734976268937,-741.4,0.00018369,2]
[346438045,1734976268947,-1730.98,0.00018369,2]
[346438046,1734976268958,-3885.77,0.00018369,2]
[346438047,1734976268967,-4626.44,0.00018369,2]
[346438048,1734976268977,-1427.67,0.00018369,2]
[346438049,1734976268986,-8693.39,0.00018369,2]
[346438050,1734976268995,-500.0,0.0001837,2]
[346438051,1734976269004,-500.0,0.0001837,2]
[346438052,1734976269013,-200.0,0.0001837,2]
[346438053,1734976269022,-500.0,0.0001837,2]
[346438054,1734976269032,-500.0,0.0001837,2]
[346438055,1734976269041,-1008.9,0.0001837,2]
[346438056,1734976269050,-473.00114205,0.0001837,2]
[346438057,1734976269060,-551.63353797,0.0001837,2]
[346438058,1734976269069,-1063.83,0.0001837,2]
[346438059,1734976269079,-887.68,0.0001837,2]
[346438060,1734976269087,-500.0,0.0001837,2]
[346438061,1734976269097,-1781.56,0.0001837,2]
[346438062,1734976269107,-334.44210411,0.0001837,2]
[346438063,1734976269116,-500.0,0.0001837,2]
[346438064,1734976269127,-500.0,0.0001837,2]
[346438065,1734976269137,-500.0,0.0001837,2]
[346438066,1734976269147,-500.0,0.0001837,2]
[346438067,1734976269157,-1269.91,0.0001837,2]
[346438068,1734976269166,-500.0,0.0001837,2]
[346438069,1734976269177,-500.0,0.0001837,2]
[346438070,1734976269187,-500.0,0.0001837,2]
[346438071,1734976269197,-500.0,0.0001837,2]
[346438072,1734976269211,-500.0,0.0001837,2]
[346438073,1734976269223,-500.0,0.0001837,2]
[346438074,1734976269233,-500.0,0.0001837,2]
[346438075,1734976269243,-987.8,0.0001837,2]
[346438076,1734976269252,-966.35,0.0001837,2]
[346438077,1734976269262,-532.23,0.0001837,2]
[346438078,1734976269272,-502.76013935,0.0001837,2]
[346438079,1734976269282,-500.0,0.0001837,2]
[346438080,1734976269291,-984.61,0.0001837,2]
[346438081,1734976269300,-933.74,0.0001837,2]
[346438082,1734976269310,-529.91,0.0001837,2]
[346438083,1734976269320,-926.35,0.0001837,2]
[346438084,1734976269329,-500.0,0.0001837,2]
[346438085,1734976269339,-500.73626573,0.0001837,2]
[346438086,1734976269348,-1883.69,0.0001837,2]
[346438087,1734976269358,-500.0,0.0001837,2]
[346438088,1734976269367,-500.0,0.0001837,2]
[346438089,1734976269377,-500.0,0.0001837,2]
[346438090,1734976269386,-537.98,0.0001837,2]
[346438091,1734976269396,-1579.82,0.0001837,2]
[346438092,1734976269406,-366.69645598,0.0001837,2]
[346438093,1734976269415,-500.0,0.0001837,2]
[346438094,1734976269424,-500.0,0.0001837,2]
[346438095,1734976269433,-500.0,0.0001837,2]
[346438096,1734976269442,-500.0,0.0001837,2]
[346438097,1734976269452,-500.0,0.0001837,2]
[346438098,1734976269461,-772.76,0.0001837,2]
[346438099,1734976269470,-500.0,0.0001837,2]
[346438100,1734976269480,-500.0,0.0001837,2]
[346438101,1734976269489,-640.34,0.0001837,2]
[346438102,1734976269498,-500.0,0.0001837,2]
[346438103,1734976269509,-556.25,0.0001837,2]
[346438104,1734976269518,-1189.84,0.0001837,2]
[346438105,1734976269527,-500.0,0.0001837,2]
[346438106,1734976269536,-792.36,0.0001837,2]
[346438107,1734976269546,-500.0,0.0001837,2]
[346438108,1734976269555,-710.13,0.0001837,2]
[346438109,1734976269564,-500.0,0.0001837,2]
[346438110,1734976269573,-500.0,0.0001837,2]
[346438111,1734976269583,-855.9,0.0001837,2]
[346438112,1734976269592,-944.28,0.0001837,2]
[346438113,1734976269601,-500.0,0.0001837,2]
[346438114,1734976269610,-500.0,0.0001837,2]
[346438115,1734976269619,-1343.98,0.0001837,2]
[346438116,1734976269628,-500.0,0.0001837,2]
[346438117,1734976269637,-536.74,0.0001837,2]
[346438118,1734976269646,-500.0,0.0001837,2]
[346438119,1734976269655,-500.0,0.0001837,2]
[346438120,1734976269665,-853.29,0.0001837,2]
[346438121,1734976269674,-522.9,0.0001837,2]
[346438122,1734976269683,-1947.2,0.0001837,2]
[346438123,1734976269692,-501.51,0.0001837,2]
[346438124,1734976269703,-500.0,0.0001837,2]
[346438125,1734976269712,-500.0,0.0001837,2]
[346438126,1734976269721,-1191.25,0.0001837,2]
[346438127,1734976269730,-624.22,0.0001837,2]
[346438128,1734976269739,-546.01,0.0001837,2]
[346438129,1734976269748,-500.0,0.0001837,2]
[346438130,1734976269757,-508.58097207,0.0001837,2]
[346438131,1734976269767,-1210.03,0.0001837,2]
[346438132,1734976269775,-500.0,0.0001837,2]
[346438133,1734976269785,-500.0,0.0001837,2]
[346438134,1734976269793,-500.0,0.0001837,2]
[346438135,1734976269802,-697.21,0.0001837,2]
[346438136,1734976269812,-500.0,0.0001837,2]
[346438137,1734976269821,-1228.86,0.0001837,2]
[346438138,1734976269830,-500.0,0.0001837,2]
[346438139,1734976269839,-500.0,0.0001837,2]
[346438140,1734976269848,-500.0,0.0001837,2]
[346438141,1734976269857,-500.0,0.0001837,2]
[346438142,1734976269866,-500.0,0.0001837,2]
[346438143,1734976269875,-500.0,0.0001837,2]
[346438144,1734976269884,-500.0,0.0001837,2]
[346438145,1734976269893,-477.25286906,0.0001837,2]
[346438146,1734976269903,-500.0,0.0001837,2]
[346438147,1734976269912,-500.0,0.0001837,2]
[346438148,1734976269921,-531.36,0.0001837,2]
[346438149,1734976269930,-500.0,0.0001837,2]
[346438150,1734976269939,-500.0,0.0001837,2]
[346438151,1734976269949,-1945.63,0.0001837,2]
[346438152,1734976269959,-500.0,0.0001837,2]
[346438153,1734976269969,-3074.23,0.0001837,2]
[346438154,1734976269979,-500.0,0.0001837,2]
[346438155,1734976269987,-897.16,0.0001837,2]
[346438156,1734976269997,-898.16,0.0001837,2]
[346438157,1734976270006,-500.0,0.0001837,2]
[346438158,1734976270015,-2239.78,0.0001837,2]
[346438159,1734976270024,-1483.86,0.0001837,2]
[346438160,1734976270033,-150.0,0.0001837,2]
[346438161,1734976270042,-500.0,0.0001837,2]
[346438162,1734976270051,-3348.04,0.0001837,2]
[346438163,1734976270059,-500.0,0.0001837,2]
[346438164,1734976270069,-1265.08,0.0001837,2]
[346438165,1734976270078,-1050.43,0.0001837,2]
[346438166,1734976270087,-502.35116814,0.0001837,2]
[346438167,1734976270096,-500.0,0.0001837,2]
[346438168,1734976270105,-720.26,0.0001837,2]
[346438169,1734976270116,-700.76,0.0001837,2]
[346438170,1734976270127,-500.0,0.0001837,2]
[346438171,1734976270137,-500.0,0.0001837,2]
[346438172,1734976270146,-970.41,0.0001837,2]
[346438173,1734976270155,-907.2,0.0001837,2]
[346438174,1734976270164,-613.28,0.0001837,2]
[346438175,1734976270174,-536.48753039,0.0001837,2]
[346438176,1734976270183,-2961.33,0.0001837,2]
[346438177,1734976270192,-500.0,0.0001837,2]
[346438178,1734976270202,-500.0,0.0001837,2]
[346438179,1734976270211,-500.0,0.0001837,2]
[346438180,1734976270220,-500.0,0.0001837,2]
[346438181,1734976270230,-2357.48,0.0001837,2]
[346438182,1734976270239,-514.3,0.0001837,2]
[346438183,1734976270344,-500.0,0.0001837,2]
[346438184,1734976270354,-500.0,0.0001837,2]
[346438185,1734976270363,-589.47,0.0001837,2]
[346438186,1734976270372,-500.0,0.0001837,2]
[346438187,1734976270381,-500.0,0.0001837,2]
[346438188,1734976270390,-500.0,0.0001837,2]
[346438189,1734976270399,-500.0,0.0001837,2]
[346438190,1734976270408,-500.0,0.0001837,2]
[346438191,1734976270417,-3097.46,0.0001837,2]
[346438192,1734976270426,-3492.33,0.0001837,2]
[346438193,1734976270435,-612.56,0.0001837,2]
[346438194,1734976270444,-500.0,0.0001837,2]
[346438195,1734976270454,-633.42,0.0001837,2]
[346438196,1734976270463,-666.4,0.0001837,2]
[346438197,1734976270472,-500.0,0.0001837,2]
[346438198,1734976270481,-731.94,0.0001837,2]
[346438199,1734976270490,-500.0,0.0001837,2]
[346438200,1734976270499,-3000.86,0.0001837,2]
[346438201,1734976270507,-568.85,0.0001837,2]
[346438202,1734976270517,-2136.82,0.0001837,2]
[346438203,1734976270526,-500.0,0.0001837,2]
[346438204,1734976270535,-500.0,0.0001837,2]
[346438205,1734976270543,-500.0,0.0001837,2]
[346438206,1734976270552,-646.44,0.0001837,2]
[346438207,1734976270561,-917.54,0.0001837,2]
[346438208,1734976270570,-500.0,0.0001837,2]
[346438209,1734976270579,-619.4,0.0001837,2]
[346438210,1734976270588,-1294.29,0.0001837,2]
[346438211,1734976270597,-500.0,0.0001837,2]
[346438212,1734976270606,-906.69,0.0001837,2]
[346438213,1734976270615,-3350.27,0.0001837,2]
[346438214,1734976270624,-505.91591175,0.0001837,2]
[346438215,1734976270633,-1790.88,0.0001837,2]
[346438216,1734976270642,-500.0,0.0001837,2]
[346438217,1734976270651,-915.29,0.0001837,2]
[346438218,1734976270660,-500.0,0.0001837,2]
[346438219,1734976270669,-500.0,0.0001837,2]
[346438220,1734976270678,-764.87,0.0001837,2]
[346438221,1734976270688,-2774.72,0.0001837,2]
[346438222,1734976270697,-872.81,0.0001837,2]
[346438223,1734976270706,-500.0,0.0001837,2]
[346438224,1734976270715,-500.0,0.0001837,2]
[346438225,1734976270725,-500.0,0.0001837,2]
[346438226,1734976270734,-500.0,0.0001837,2]
[346438227,1734976270743,-500.0,0.0001837,2]
[346438228,1734976270752,-2032.43,0.0001837,2]
[346438229,1734976270761,-577.89,0.0001837,2]
[346438230,1734976270770,-500.0,0.0001837,2]
[346438231,1734976270779,-510.48935242,0.0001837,2]
[346438232,1734976270788,-1275.46,0.0001837,2]
[346438233,1734976270796,-656.21,0.0001837,2]
[346438234,1734976270805,-500.0,0.0001837,2]
[346438235,1734976270814,-702.39,0.0001837,2]
[346438236,1734976270823,-572.99690971,0.0001837,2]
[346438237,1734976270832,-1904.3,0.0001837,2]
[346438238,1734976270841,-500.0,0.0001837,2]
[346438239,1734976270850,-500.0,0.0001837,2]
[346438240,1734976270858,-2429.79,0.0001837,2]
[346438241,1734976270867,-500.0,0.0001837,2]
[346438242,1734976270876,-500.0,0.0001837,2]
[346438243,1734976270885,-1984.12,0.0001837,2]
[346438244,1734976270894,-1899.94,0.0001837,2]
[346438245,1734976270903,-500.0,0.0001837,2]
[346438246,1734976270912,-1498.5,0.0001837,2]
[346438247,1734976270921,-1009.48,0.0001837,2]
[346438248,1734976270930,-500.0,0.0001837,2]
[346438249,1734976270939,-500.0,0.0001837,2]
[346438250,1734976270948,-1423.51,0.0001837,2]
[346438251,1734976270958,-500.0,0.0001837,2]
[346438252,1734976270967,-534.03,0.0001837,2]
[346438253,1734976270975,-500.0,0.0001837,2]
[346438254,1734976270985,-3297.7,0.0001837,2]
[346438255,1734976270994,-500.0,0.0001837,2]
[346438256,1734976271002,-500.0,0.0001837,2]
[346438257,1734976271012,-500.0,0.0001837,2]
[346438258,1734976271020,-500.0,0.0001837,2]
[346438259,1734976271030,-500.0,0.0001837,2]
[346438260,1734976271039,-500.0,0.0001837,2]
[346438261,1734976271047,-1587.08,0.0001837,2]
[346438262,1734976271056,-500.0,0.0001837,2]
[346438263,1734976271065,-500.0,0.0001837,2]
[346438264,1734976271075,-657.86,0.0001837,2]
[346438265,1734976271083,-2293.36,0.0001837,2]
[346438266,1734976271093,-500.0,0.0001837,2]
[346438267,1734976271102,-956.37,0.0001837,2]
[346438268,1734976271111,-663.25,0.0001837,2]
[346438269,1734976271120,-1304.37,0.0001837,2]
[346438270,1734976271132,-1376.87,0.0001837,2]
[346438271,1734976271141,-500.0,0.0001837,2]
[346438272,1734976271150,-606.77,0.0001837,2]
[346438273,1734976271159,-500.0,0.0001837,2]
[346438274,1734976271169,-609.18763277,0.0001837,2]
[346438275,1734976271178,-2329.24,0.0001837,2]
[346438276,1734976271187,-500.0,0.0001837,2]
[346438277,1734976271196,-512.39151128,0.0001837,2]
[346438278,1734976271207,-1999.75,0.0001837,2]
[346438279,1734976271218,-860.8,0.0001837,2]
[346438280,1734976271227,-1584.95,0.0001837,2]
[346438281,1734976271236,-814.23,0.0001837,2]
[346438282,1734976271246,-500.0,0.0001837,2]
[346438283,1734976271255,-500.0,0.0001837,2]
[346438284,1734976271264,-500.0,0.0001837,2]
[346438285,1734976271273,-2473.74,0.0001837,2]
[346438286,1734976271283,-500.0,0.0001837,2]
[346438287,1734976271292,-500.0,0.0001837,2]
[346438288,1734976271301,-806.89,0.0001837,2]
[346438289,1734976271310,-3489.18,0.0001837,2]
[346438290,1734976271319,-1529.57,0.0001837,2]
[346438291,1734976271328,-525.57,0.0001837,2]
[346438292,1734976271337,-700.0,0.0001837,2]
[346438293,1734976271346,-1507.29,0.0001837,2]
[346438294,1734976271355,-1461.06,0.0001837,2]
[346438295,1734976271364,-1796.06,0.0001837,2]
[346438296,1734976271373,-576.42,0.0001837,2]
[346438297,1734976271382,-1567.34,0.0001837,2]
[346438298,1734976271391,-500.0,0.0001837,2]
[346438299,1734976271400,-1856.55,0.0001837,2]
[346438300,1734976271409,-500.0,0.0001837,2]
[346438301,1734976271418,-500.0,0.0001837,2]
[346438302,1734976271427,-500.0,0.0001837,2]
[346438303,1734976271436,-573.12,0.0001837,2]
[346438304,1734976271445,-1705.03,0.0001837,2]
[346438305,1734976271454,-929.93,0.0001837,2]
[346438306,1734976271463,-1481.02,0.0001837,2]
[346438307,1734976271472,-500.0,0.0001837,2]
[346438308,1734976271481,-500.0,0.0001837,2]
[346438309,1734976271490,-1554.02,0.0001837,2]
[346438310,1734976271500,-500.0,0.0001837,2]
[346438311,1734976271509,-500.0,0.0001837,2]
[346438312,1734976271518,-1512.97,0.0001837,2]
[346438313,1734976271527,-500.0,0.0001837,2]
[346438314,1734976271536,-3967.65,0.0001837,2]
[346438315,1734976271545,-500.0,0.0001837,2]
[346438316,1734976271554,-1246.38,0.0001837,2]
[346438317,1734976271564,-870.96,0.0001837,2]
[346438318,1734976271573,-1226.94,0.0001837,2]
[346438319,1734976271582,-1439.57,0.0001837,2]
[346438320,1734976271590,-500.0,0.0001837,2]
[346438321,1734976271599,-500.0,0.0001837,2]
[346438322,1734976271608,-500.0,0.0001837,2]
[346438323,1734976271617,-1887.55,0.0001837,2]
[346438324,1734976271626,-500.0,0.0001837,2]
[346438325,1734976271635,-749.42,0.0001837,2]
[346438326,1734976271644,-604.97,0.0001837,2]
[346438327,1734976271653,-1044.86,0.0001837,2]
[346438328,1734976271662,-2488.03,0.0001837,2]
[346438329,1734976271671,-500.0,0.0001837,2]
[346438330,1734976271680,-500.0,0.0001837,2]
[346438331,1734976271689,-2607.87,0.0001837,2]
[346438332,1734976271698,-568.75,0.0001837,2]
[346438333,1734976271710,-500.0,0.0001837,2]
[346438334,1734976271719,-500.0,0.0001837,2]
[346438335,1734976271728,-1513.53,0.0001837,2]
[346438336,1734976271737,-624.2,0.0001837,2]
[346438337,1734976271746,-500.0,0.0001837,2]
[346438338,1734976271756,-939.32,0.0001837,2]
[346438339,1734976271766,-720.85,0.0001837,2]
[346438340,1734976271775,-1370.39,0.0001837,2]
[346438341,1734976271785,-1503.63,0.0001837,2]
[346438342,1734976271794,-500.0,0.0001837,2]
[346438343,1734976271804,-500.0,0.0001837,2]
[346438344,1734976271814,-500.0,0.0001837,2]
[346438345,1734976271823,-943.59,0.0001837,2]
[346438346,1734976271833,-607.33,0.0001837,2]
[346438347,1734976271842,-1021.61,0.0001837,2]
[346438348,1734976271851,-1110.92,0.0001837,2]
[346438349,1734976271860,-1160.57,0.0001837,2]
[346438350,1734976271869,-840.44,0.0001837,2]
[346438351,1734976271878,-2609.31,0.0001837,2]
[346438352,1734976271888,-500.0,0.0001837,2]
[346438353,1734976271897,-506.72,0.0001837,2]
[346438354,1734976271906,-500.0,0.0001837,2]
[346438355,1734976271915,-500.0,0.0001837,2]
[346438356,1734976271924,-795.76,0.0001837,2]
[346438357,1734976271934,-2136.07,0.0001837,2]
[346438358,1734976271943,-2406.25,0.0001837,2]
[346438359,1734976271952,-500.0,0.0001837,2]
[346438360,1734976271963,-923.2,0.0001837,2]
[346438361,1734976271972,-500.0,0.0001837,2]
[346438362,1734976271982,-500.0,0.0001837,2]
[346438363,1734976271991,-1602.94,0.0001837,2]
[346438364,1734976272001,-2292.26,0.0001837,2]
[346438365,1734976272010,-1660.55,0.0001837,2]
[346438366,1734976272019,-500.0,0.0001837,2]
[346438367,1734976272028,-500.0,0.0001837,2]
[346438368,1734976272038,-500.0,0.0001837,2]
[346438369,1734976272047,-500.0,0.0001837,2]
[346438370,1734976272057,-504.85,0.0001837,2]
[346438371,1734976272066,-1410.62,0.0001837,2]
[346438372,1734976272075,-500.0,0.0001837,2]
[346438373,1734976272084,-500.0,0.0001837,2]
[346438374,1734976272093,-500.0,0.0001837,2]
[346438375,1734976272103,-151.0,0.0001837,2]
[346438376,1734976272112,-1342.84,0.0001837,2]
[346438377,1734976272121,-500.0,0.00018373,2]
[346438378,1734976272136,-612.62,0.00018379,2]
[346438379,1734976272146,-5288.42,0.00018379,2]
[346438380,1734976272156,-2551.44,0.0001838,2]
[346438381,1734976272165,-500.0,0.0001838,2]
[346438382,1734976272176,-1099.33,0.0001838,2]
[346438383,1734976272185,-1276.98,0.0001838,2]
[346438384,1734976272196,-1337.63,0.0001838,2]
[346438385,1734976272216,-1255.15,0.0001838,2]
[346438386,1734976272227,-2411.99,0.0001838,2]
[346438387,1734976272236,-2918.95,0.0001838,2]
[346438388,1734976272246,-1232.13,0.0001838,2]
[346438389,1734976272255,-2058.49,0.0001838,2]
[346438390,1734976272265,-3334.75,0.0001838,2]
[346438391,1734976272274,-2126.1,0.0001838,2]
[346438392,1734976272283,-1541.94,0.0001838,2]
[346438393,1734976272292,-446.255174,0.0001838,2]
[346438394,1734976272302,-446.255174,0.0001838,2]
[346438395,1734976272312,-150.0,0.0001839,2]
[346438396,1734976272321,-8500.0,0.000184,2]
[346438397,1734976272330,-812.0,0.000184,2]
[346438398,1734976272340,-173.20402611,0.00018411,2]
[346438399,1734976272349,-269.66460851,0.00018411,2]
[346438400,1734976272359,-273.64290061,0.00018411,2]
[346438401,1734976272368,-150.44586204,0.00018411,2]
[346438402,1734976272378,-180.41130699,0.00018411,2]
[346438403,1734976272388,-483.08,0.00018411,2]
[346438404,1734976272397,-593.32374844,0.00018411,2]
[346438405,1734976272407,-482.98,0.00018412,2]
[346438406,1734976272417,-1624.23,0.00018412,2]
[346438407,1734976272426,-201.09,0.00018413,2]
[346438408,1734976272435,-500.0,0.00018413,2]
[346438409,1734976272444,-500.0,0.00018413,2]
[346438410,1734976272454,-500.0,0.00018413,2]
[346438411,1734976272463,-150.0,0.00018413,2]
[346438412,1734976272473,-500.0,0.00018413,2]
[346438413,1734976272482,-1435.27,0.00018413,2]
[346438414,1734976272491,-712.1,0.00018413,2]